[Event "37th Andorra Open 2019"]
[Site "Caldea"]
[Date "2019.07.31"]
[Round "3.1"]
[White "Roberson, Peter T"]
[Black "Lagarde, Maxime"]
[Result "0-1"]
[ECO "C78"]
[WhiteElo "2429"]
[BlackElo "2597"]
[Annotator "ChessBase"]
[PlyCount "104"]
[EventDate "2018.07.21"]
[EventType "swiss"]
[EventCountry "AND"]
[TimeControl "40/5400+30:1800+30"]

1. e4 {[%emt 0:00:00]} e5 {[%emt 0:00:00]} 2. Nf3 {[%emt 0:00:00]} Nc6 {[%emt 0:00:00]} 3. Bb5 {[%emt 0:00:55]} a6 {[%emt 0:00:00]} 4. Ba4 {[%emt 0:00:02]} Nf6 {[%emt 0:00:00]} 5. O-O {[%emt 0:00:09]} b5 {[%emt 0:00:00]} 6. Bb3 {[%emt 0:00:04]} Bc5 {[%emt 0:00:00]} 7. a4 {[%emt 0:02:11]} Rb8 {[%emt 0:00:07]} 8. c3 {[%emt 0:00:38]} d6 {[%emt 0:00:05]} 9. d4 {[%emt 0:00:49]} Bb6 {[%emt 0:00:03]} 10. a5 {[%emt 0:01:14]} Ba7 {[%emt 0:00:04]} 11. h3 {[%emt 0:01:43]} O-O {[%emt 0:01:46]} 12. Be3 {[%emt 0:00:12]} Ra8 {[%emt 0:13:41]} 13. Bg5 {[%emt 0:04:06]} h6 {[%emt 0:01:50]} 14. Bh4 {[%emt 0:02:23]} Qe7 {[%emt 0:10:39]} 15. Re1 {[%emt 0:10:12]} Kh7 {[%emt 0:03:22]} 16. Qd3 {[%emt 0:04:56]} g5 {[%emt 0:03:54]} 17. Bg3 {[%emt 0:02:24]} Nh5 {[%emt 0:00:28]} 18. Nbd2 {[%emt 0:14:25]} Nf4 {[%emt 0:02:33]} 19. Bxf4 {[%emt 0:05:11]} gxf4 {[%emt 0:00:04]} 20. Kh2 {[%emt 0:02:33]} Qf6 {[%emt 0:03:10]} 21. Rg1 {[%emt 0:10:13]} Ne7 {[%emt 0:02:15]} 22. g4 {[%emt 0:02:44]} fxg3+ {[%emt 0:01:04]} 23. fxg3 {[%emt 0:05:09]} c5 {[%emt 0:00:29]} 24. dxe5 {[%emt 0:06:05]} dxe5 {[%emt 0:01:44]} 25. c4 {[%emt 0:00:13]} Ng6 {[%emt 0:02:32]} 26. Rad1 {[%emt 0:07:45]} Rb8 {[%emt 0:01:59]} 27. Rgf1 {[%emt 0:02:14]} Qe7 {[%emt 0:06:35]} 28. Nb1 {[%emt 0:06:06]} Be6 {[%emt 0:08:33]} 29. Nc3 {[%emt 0:02:41]} Rfd8 {[%emt 0:02:24]} 30. Qe2 {[%emt 0:01:10]} Rxd1 {[%emt 0:03:39]} 31. Rxd1 {[%emt 0:03:39]} bxc4 {[%emt 0:00:08]} 32. Ba2 {[%emt 0:01:52]} Rb4 {[%emt 0:07:34]} 33. Nd5 {[%emt 0:01:14]} Bxd5 {[%emt 0:00:04]} 34. exd5 {[%emt 0:00:57]} e4 {[%emt 0:08:32]} 35. d6 {[%emt 0:00:32]} Qf6 {[%emt 0:00:05]} 36. Qxe4 {[%emt 0:00:28]} c3 {[%emt 0:08:08]} 37. Qd5 {[%emt 0:00:36]} Rxb2+ {[%emt 0:02:35]} 38. Kh1 {[%emt 0:00:01]} Bb8 {[%emt 0:04:23]} 39. d7 {[%emt 0:00:41]} Bc7 {[%emt 0:00:03]} 40. Rf1 {[%emt 0:00:00]} Kg7 {[%emt 0:00:00]} 41. Qxc5 {[%emt 0:12:47]} Ne5 {[%emt 0:16:00]} 42. Bd5 {[%emt 0:10:56]} Qf5 {[%emt 0:00:31]} 43. g4 {[%emt 0:08:46]} Qd3 {[%emt 0:02:15]} 44. Qxc7 {[%emt 0:00:29]} Qxf1+ {[%emt 0:07:30]} 45. Ng1 {[%emt 0:00:02]} Qf4 {[%emt 0:00:08]} 46. Bg2 {[%emt 0:00:57]} Qg3 {[%emt 0:00:37]} 47. Qxe5+ {[%emt 0:00:23]} Qxe5 {[%emt 0:00:05]} 48. d8=Q {[%emt 0:00:03]} Rd2 {[%emt 0:06:00]} 49. Qc8 {[%emt 0:00:33]} c2 {[%emt 0:00:10]} 50. Qc4 {[%emt 0:00:45]} Qa1 {[%emt 0:00:43]} 51. g5 {[%emt 0:00:20]} hxg5 {[%emt 0:00:29]} 52. Qc5 {[%emt 0:00:09]} Rxg2 {[%emt 0:00:22]} 0-1

[Event "37th Andorra Open 2019"]
[Site "Caldea"]
[Date "2019.07.30"]
[Round "3.2"]
[White "Peralta, Fernando"]
[Black "Fluvia Poyatos, Jordi"]
[Result "1/2-1/2"]
[ECO "D87"]
[WhiteElo "2562"]
[BlackElo "2455"]
[Annotator "RC"]
[PlyCount "42"]
[EventDate "2018.07.21"]
[EventType "swiss"]
[EventCountry "AND"]
[TimeControl "40/5400+30:1800+30"]

1. d4 {[%emt 0:00:00]} Nf6 {[%emt 0:00:00]} 2. c4 {[%emt 0:00:00]} g6 {[%emt 0:00:06]} 3. Nc3 {[%emt 0:00:00]} d5 {[%emt 0:00:14]} 4. cxd5 {[%emt 0:00:12]} Nxd5 {[%emt 0:00:11]} 5. e4 {[%emt 0:00:06]} Nxc3 {[%emt 0:00:07]} 6. bxc3 {[%emt 0:00:04]} Bg7 {[%emt 0:00:14]} 7. Bc4 {[%emt 0:00:26]} c5 {[%emt 0:00:27]} 8. Ne2 {[%emt 0:00:09]} O-O {[%emt 0:00:31]} 9. O-O {[%emt 0:00:06]} Nc6 {[%emt 0:00:06]} 10. Be3 {[%emt 0:00:05]} Qc7 {[%emt 0:01:01]} 11. Rc1 {[%emt 0:01:03]} Rd8 {[%emt 0:00:22]} 12. Bf4 {[%emt 0:01:07]} e5 {[%emt 0:00:55]} 13. Bg5 {[%emt 0:02:44]} Rd6 {[%emt 0:01:10]} 14. d5 {[%emt 0:11:04]} Na5 {[%emt 0:00:57]} 15. Bd3 {[%emt 0:00:30]} c4 {[%emt 0:00:38]} 16. Bc2 {[%emt 0:00:52]} b5 {[%emt 0:04:27]} 17. Rb1 {[%emt 0:09:55]} Bd7 {[%emt 0:07:08]} 18. f4 {[%emt 0:09:48]} f6 {[%emt 0:03:28]} 19. fxe5 {[%emt 0:01:25]} fxe5 {[%emt 0:00:09]} 20. Qe1 {[%emt 0:05:36]} Nb7 {[%emt 0:03:09]} 21. Be7 {[%emt 0:17:57]} Ra6 {[%emt 0:01:37]} 1/2-1/2

[Event "37th Andorra Open 2019"]
[Site "Caldea"]
[Date "2019.07.30"]
[Round "3.6"]
[White "Rendle, Thomas E"]
[Black "Arizmendi Martinez, Julen Luis"]
[Result "1/2-1/2"]
[ECO "C02"]
[WhiteElo "2372"]
[BlackElo "2512"]
[Annotator "ChessBase"]
[PlyCount "28"]
[EventDate "2018.07.21"]
[EventType "swiss"]
[EventCountry "AND"]
[TimeControl "40/5400+30:1800+30"]

1. e4 {[%emt 0:00:00]} e6 {[%emt 0:01:20]} 2. d4 {[%emt 0:00:00]} d5 {[%emt 0:00:07]} 3. e5 {[%emt 0:00:02]} c5 {[%emt 0:01:57]} 4. c3 {[%emt 0:00:10]} Qb6 {[%emt 0:04:00]} 5. Nf3 {[%emt 0:03:53]} Nc6 {[%emt 0:00:09]} 6. a3 {[%emt 0:00:47]} c4 {[%emt 0:01:10]} 7. Nbd2 {[%emt 0:00:14]} Na5 {[%emt 0:00:49]} 8. Be2 {[%emt 0:00:18]} Bd7 {[%emt 0:03:01]} 9. O-O {[%emt 0:01:36]} Ne7 {[%emt 0:02:47]} 10. Rb1 {[%emt 0:00:33]} Qc7 {[%emt 0:02:38]} 11. Ne1 {[%emt 0:02:21]} Nc8 {[%emt 0:10:54]} 12. f4 {[%emt 0:01:09]} Nb6 {[%emt 0:00:39]} 13. Bg4 {[%emt 0:00:24]} g6 {[%emt 0:02:02]} 14. Ndf3 {[%emt 0:01:40]} Be7 {[%emt 0:23:10]} 1/2-1/2

[Event "37th Andorra Open 2019"]
[Site "Caldea"]
[Date "2019.07.31"]
[Round "3.7"]
[White "Stella, Andrea"]
[Black "Hansen, Mads"]
[Result "1/2-1/2"]
[ECO "E15"]
[WhiteElo "2511"]
[BlackElo "2406"]
[Annotator "RC"]
[PlyCount "88"]
[EventDate "2018.07.21"]
[EventType "swiss"]
[EventCountry "AND"]
[TimeControl "40/5400+30:1800+30"]

1. d4 {[%emt 0:00:00]} Nf6 {[%emt 0:00:00]} 2. c4 {[%emt 0:00:00]} e6 {[%emt 0:00:00]} 3. Nf3 {[%emt 0:00:00]} b6 {[%emt 0:00:39]} 4. g3 {[%emt 0:00:17]} Ba6 {[%emt 0:00:15]} 5. b3 {[%emt 0:00:07]} b5 {[%emt 0:01:28]} 6. cxb5 {[%emt 0:01:19]} Bxb5 {[%emt 0:00:02]} 7. Bg2 {[%emt 0:00:09]} d5 {[%emt 0:03:40]} 8. O-O {[%emt 0:00:19]} Nbd7 {[%emt 0:01:12]} 9. Ba3 {[%emt 0:05:55]} Bxa3 {[%emt 0:10:58]} 10. Nxa3 {[%emt 0:00:04]} Ba6 {[%emt 0:00:02]} 11. Rc1 {[%emt 0:17:49]} O-O {[%emt 0:05:26]} 12. Rc6 {[%emt 0:04:23]} Bb7 {[%emt 0:07:04]} 13. Rc2 {[%emt 0:00:07]} Qe7 {[%emt 0:06:03]} 14. Rxc7 {[%emt 0:32:21]} Qxa3 {[%emt 0:00:26]} 15. Rxb7 {[%emt 0:00:05]} Qxa2 {[%emt 0:05:37]} 16. Ne5 {[%emt 0:01:18]} Nxe5 {[%emt 0:04:20]} 17. dxe5 {[%emt 0:00:04]} Qa6 {[%emt 0:00:28]} 18. Rb4 {[%emt 0:02:54]} Nd7 {[%emt 0:01:48]} 19. e4 {[%emt 0:01:06]} Nxe5 {[%emt 0:02:03]} 20. exd5 {[%emt 0:01:38]} Qd6 {[%emt 0:11:14]} 21. Re4 {[%emt 0:13:15]} exd5 {[%emt 0:01:36]} 22. Rd4 {[%emt 0:00:14]} Rad8 {[%emt 0:03:38]} 23. Rxd5 {[%emt 0:00:16]} Qc7 {[%emt 0:00:05]} 24. Re1 {[%emt 0:08:28]} Ng6 {[%emt 0:03:24]} 25. h4 {[%emt 0:00:56]} Ne7 {[%emt 0:01:18]} 26. Rxd8 {[%emt 0:00:05]} Rxd8 {[%emt 0:00:02]} 27. Qe2 {[%emt 0:00:05]} Kf8 {[%emt 0:00:21]} 28. Be4 {[%emt 0:02:17]} h6 {[%emt 0:04:00]} 29. Bd3 {[%emt 0:03:58]} Qb7 {[%emt 0:06:36]} 30. Bb5 {[%emt 0:02:35]} a5 {[%emt 0:07:33]} 31. Qe3 {[%emt 0:02:09]} Rd6 {[%emt 0:02:48]} 32. Bc4 {[%emt 0:00:04]} Rf6 {[%emt 0:02:23]} 33. Re2 {[%emt 0:01:23]} Rd6 {[%emt 0:03:28]} 34. Re1 {[%emt 0:00:02]} Qc7 {[%emt 0:02:26]} 35. Qe4 {[%emt 0:00:45]} Rd2 {[%emt 0:00:57]} 36. Qe3 {[%emt 0:00:48]} Qd7 {[%emt 0:01:23]} 37. Qf4 {[%emt 0:00:27]} Ng6 {[%emt 0:01:18]} 38. Qb8+ {[%emt 0:00:22]} Qd8 {[%emt 0:00:01]} 39. Qxd8+ {[%emt 0:00:34]} Rxd8 {[%emt 0:00:01]} 40. Ra1 {[%emt 0:00:00]} Ra8 {[%emt 0:00:00]} 41. Bd5 {[%emt 0:00:52]} Ra7 {[%emt 0:04:22]} 42. b4 {[%emt 0:03:26]} Ne7 {[%emt 0:01:20]} 43. Bb3 {[%emt 0:01:18]} Nc6 {[%emt 0:02:05]} 44. bxa5 {[%emt 0:00:23]} Nxa5 {[%emt 0:01:53]} 1/2-1/2

[Event "37th Andorra Open 2019"]
[Site "Caldea"]
[Date "2019.07.30"]
[Round "3.8"]
[White "Van der Lende, Ilias"]
[Black "Asis Gargatagli, Hipolito"]
[Result "1/2-1/2"]
[ECO "D02"]
[WhiteElo "2350"]
[BlackElo "2506"]
[Annotator "ChessBase"]
[PlyCount "83"]
[EventDate "2018.07.21"]
[EventType "swiss"]
[EventCountry "AND"]
[TimeControl "40/5400+30:1800+30"]

1. d4 {[%emt 0:00:00]} Nf6 {[%emt 0:04:28]} 2. Nf3 {[%emt 0:00:00]} g6 {[%emt 0:00:43]} 3. g3 {[%emt 0:02:00]} Bg7 {[%emt 0:01:27]} 4. Bg2 {[%emt 0:00:06]} d5 {[%emt 0:02:53]} 5. O-O {[%emt 0:00:11]} Nbd7 {[%emt 0:03:45]} 6. c4 {[%emt 0:03:38]} dxc4 {[%emt 0:00:21]} 7. Nbd2 {[%emt 0:01:02]} Nb6 {[%emt 0:00:24]} 8. e4 {[%emt 0:06:43]} c6 {[%emt 0:18:13]} 9. a4 {[%emt 0:04:04]} a5 {[%emt 0:02:17]} 10. Qc2 {[%emt 0:00:09]} O-O {[%emt 0:16:42]} 11. Re1 {[%emt 0:01:05]} Be6 {[%emt 0:17:06]} 12. Bf1 {[%emt 0:00:38]} Bg4 {[%emt 0:00:34]} 13. h3 {[%emt 0:04:16]} Be6 {[%emt 0:01:42]} 14. Ng5 {[%emt 0:04:36]} Bc8 {[%emt 0:04:35]} 15. Nxc4 {[%emt 0:03:33]} Nxc4 {[%emt 0:00:26]} 16. Qxc4 {[%emt 0:00:08]} h6 {[%emt 0:02:31]} 17. Nf3 {[%emt 0:00:06]} Be6 {[%emt 0:02:20]} 18. Qc2 {[%emt 0:01:14]} Qb6 {[%emt 0:00:07]} 19. Be3 {[%emt 0:02:41]} Qb3 {[%emt 0:02:04]} 20. Qb1 {[%emt 0:00:52]} Rfd8 {[%emt 0:00:36]} 21. Rc1 {[%emt 0:33:46]} Ne8 {[%emt 0:01:23]} 22. Ra3 {[%emt 0:04:25]} Qb4 {[%emt 0:00:08]} 23. Ne1 {[%emt 0:00:22]} Qd6 {[%emt 0:03:44]} 24. Rd3 {[%emt 0:00:51]} Qd7 {[%emt 0:00:39]} 25. Kh2 {[%emt 0:00:59]} Nd6 {[%emt 0:01:50]} 26. Rd2 {[%emt 0:00:41]} Bb3 {[%emt 0:03:27]} 27. g4 {[%emt 0:03:59]} Bxa4 {[%emt 0:05:32]} 28. e5 {[%emt 0:00:05]} Ne8 {[%emt 0:00:40]} 29. Bd3 {[%emt 0:06:05]} Bb3 {[%emt 0:01:48]} 30. f4 {[%emt 0:00:37]} Nc7 {[%emt 0:00:22]} 31. Ng2 {[%emt 0:03:51]} Nd5 {[%emt 0:00:26]} 32. Be4 {[%emt 0:00:04]} a4 {[%emt 0:00:19]} 33. Qd3 {[%emt 0:01:48]} b5 {[%emt 0:00:10]} 34. Bf2 {[%emt 0:01:02]} Nb4 {[%emt 0:01:45]} 35. Qf3 {[%emt 0:03:38]} Bd5 {[%emt 0:00:04]} 36. Ne3 {[%emt 0:00:37]} a3 {[%emt 0:01:10]} 37. Bxd5 {[%emt 0:02:24]} cxd5 {[%emt 0:00:46]} 38. bxa3 {[%emt 0:03:32]} Rxa3 {[%emt 0:00:05]} 39. Qe2 {[%emt 0:00:25]} Nc6 {[%emt 0:00:56]} 40. Rc5 {[%emt 0:00:00]} e6 {[%emt 0:00:00]} 41. Qxb5 {[%emt 0:02:28]} Ne7 {[%emt 0:02:21]} 42. Qb6 {[%emt 0:05:44]} 1/2-1/2

[Event "37th Andorra Open 2019"]
[Site "Caldea"]
[Date "2019.07.30"]
[Round "4.1"]
[White "Lagarde, Maxime"]
[Black "Ochsner, Bjorn Moller"]
[Result "1-0"]
[ECO "C29"]
[WhiteElo "2597"]
[BlackElo "2483"]
[Annotator "ChessBase"]
[PlyCount "77"]
[EventDate "2018.07.21"]
[EventType "swiss"]
[EventCountry "AND"]
[SourceTitle "playchess.com"]
[Source "ChessBase"]
[SourceQuality "1"]
[TimeControl "40/5400+30:1800+30"]

1. e4 {[%emt 0:00:00]} e5 {[%emt 0:00:00]} 2. Nc3 {[%emt 0:00:19]} Nf6 {[%emt 0:00:00]} 3. f4 {[%emt 0:00:05]} d5 {[%emt 0:00:27]} 4. fxe5 {[%emt 0:00:05]} Nxe4 {[%emt 0:00:13]} 5. Qf3 {[%emt 0:00:05]} Nxc3 {[%emt 0:03:25]} 6. dxc3 {[%emt 0:00:05]} Be6 {[%emt 0:21:43]} 7. Qg3 {[%emt 0:05:02]} c5 {[%emt 0:09:22]} 8. Bb5+ {[%emt 0:03:53]} Nc6 {[%emt 0:01:43]} 9. Bxc6+ {[%emt 0:02:29]} bxc6 {[%emt 0:00:02]} 10. Ne2 {[%emt 0:02:53]} Be7 {[%emt 0:07:03]} 11. Qxg7 {[%emt 0:06:16]} Kd7 {[%emt 0:00:07]} 12. Nf4 {[%emt 0:02:46]} Rg8 {[%emt 0:02:24]} 13. Qxh7 {[%emt 0:00:33]} Qc7 {[%emt 0:07:07]} 14. O-O {[%emt 0:00:35]} Qxe5 {[%emt 0:01:57]} 15. Nxe6 {[%emt 0:01:43]} fxe6 {[%emt 0:08:41]} 16. Bf4 {[%emt 0:01:19]} Qe2 {[%emt 0:01:59]} 17. Rf2 {[%emt 0:08:17]} Qg4 {[%emt 0:01:01]} 18. h3 {[%emt 0:00:25]} Qh4 {[%emt 0:03:53]} 19. Qxh4 {[%emt 0:00:41]} Bxh4 {[%emt 0:00:02]} 20. Rf3 {[%emt 0:00:18]} Raf8 {[%emt 0:04:50]} 21. Raf1 {[%emt 0:00:19]} Rf5 {[%emt 0:01:43]} 22. Be3 {[%emt 0:05:16]} Rxf3 {[%emt 0:00:21]} 23. Rxf3 {[%emt 0:00:03]} Kd6 {[%emt 0:03:14]} 24. b4 {[%emt 0:03:29]} cxb4 {[%emt 0:00:15]} 25. cxb4 {[%emt 0:00:04]} a6 {[%emt 0:06:35]} 26. Bc5+ {[%emt 0:00:30]} Ke5 {[%emt 0:00:33]} 27. Re3+ {[%emt 0:00:03]} Kf6 {[%emt 0:00:41]} 28. Bd4+ {[%emt 0:01:09]} Ke7 {[%emt 0:00:05]} 29. Bc5+ {[%emt 0:01:39]} Kd7 {[%emt 0:02:11]} 30. Ra3 {[%emt 0:00:21]} e5 {[%emt 0:03:27]} 31. Rxa6 {[%emt 0:00:21]} d4 {[%emt 0:02:04]} 32. a4 {[%emt 0:01:35]} Rg3 {[%emt 0:03:40]} 33. b5 {[%emt 0:03:58]} cxb5 {[%emt 0:01:14]} 34. axb5 {[%emt 0:03:24]} Re3 {[%emt 0:01:41]} 35. Ra7+ {[%emt 0:01:47]} Kc8 {[%emt 0:01:20]} 36. Bb4 {[%emt 0:10:12]} Re2 {[%emt 0:01:52]} 37. b6 {[%emt 0:00:50]} Bg3 {[%emt 0:00:38]} 38. Rg7 {[%emt 0:00:55]} Rxc2 {[%emt 0:00:48]} 39. b7+ {[%emt 0:00:06]} 1-0

[Event "37th Andorra Open 2019"]
[Site "Caldea"]
[Date "2019.07.30"]
[Round "4.4"]
[White "Ruiz Castillo, Joshua Daniel"]
[Black "Aloma Vidal, Robert"]
[Result "1/2-1/2"]
[ECO "E68"]
[WhiteElo "2501"]
[BlackElo "2419"]
[Annotator "ChessBase"]
[PlyCount "86"]
[EventDate "2018.07.21"]
[EventType "swiss"]
[EventCountry "AND"]
[SourceTitle "playchess.com"]
[Source "ChessBase"]
[SourceQuality "1"]
[TimeControl "40/5400+30:1800+30"]

1. Nf3 {[%emt 0:12:39]} Nf6 {[%emt 0:00:36]} 2. g3 {[%emt 0:00:10]} g6 {[%emt 0:00:30]} 3. Bg2 {[%emt 0:00:05]} Bg7 {[%emt 0:00:04]} 4. O-O {[%emt 0:00:04]} O-O {[%emt 0:01:07]} 5. c4 {[%emt 0:00:02]} d6 {[%emt 0:02:18]} 6. d4 {[%emt 0:00:06]} Nbd7 {[%emt 0:01:12]} 7. Nc3 {[%emt 0:00:09]} e5 {[%emt 0:00:12]} 8. e4 {[%emt 0:02:06]} exd4 {[%emt 0:05:59]} 9. Nxd4 {[%emt 0:00:49]} Re8 {[%emt 0:00:07]} 10. h3 {[%emt 0:00:56]} Nc5 {[%emt 0:00:36]} 11. Re1 {[%emt 0:00:07]} Bd7 {[%emt 0:00:59]} 12. Nb3 {[%emt 0:25:26]} Na4 {[%emt 0:10:34]} 13. e5 {[%emt 0:17:08]} Nxc3 {[%emt 0:07:28]} 14. bxc3 {[%emt 0:00:01]} Rxe5 {[%emt 0:03:01]} 15. Rxe5 {[%emt 0:00:04]} dxe5 {[%emt 0:00:07]} 16. Bxb7 {[%emt 0:00:01]} Rb8 {[%emt 0:16:50]} 17. Bg2 {[%emt 0:00:08]} Qc8 {[%emt 0:08:08]} 18. Kh2 {[%emt 0:01:05]} e4 {[%emt 0:06:33]} 19. Be3 {[%emt 0:01:10]} a6 {[%emt 0:00:58]} 20. Nc5 {[%emt 0:00:30]} Bc6 {[%emt 0:01:00]} 21. Rb1 {[%emt 0:00:30]} Ra8 {[%emt 0:03:07]} 22. Qc2 {[%emt 0:00:33]} Qf5 {[%emt 0:03:11]} 23. Nb3 {[%emt 0:05:37]} Bd7 {[%emt 0:04:52]} 24. Nc5 {[%emt 0:07:38]} Bc6 {[%emt 0:00:17]} 25. Qd1 {[%emt 0:00:49]} h5 {[%emt 0:02:05]} 26. Nb3 {[%emt 0:00:28]} Bd7 {[%emt 0:01:15]} 27. Nd4 {[%emt 0:01:27]} Qa5 {[%emt 0:00:33]} 28. Rb7 {[%emt 0:03:01]} Rc8 {[%emt 0:06:55]} 29. Qc2 {[%emt 0:03:41]} h4 {[%emt 0:00:16]} 30. Bf4 {[%emt 0:01:50]} hxg3+ {[%emt 0:01:11]} 31. fxg3 {[%emt 0:00:01]} Qc5 {[%emt 0:05:28]} 32. Nb3 {[%emt 0:02:26]} Qxc4 {[%emt 0:00:37]} 33. Rb4 {[%emt 0:00:37]} Qc6 {[%emt 0:01:17]} 34. Nd2 {[%emt 0:00:56]} Be6 {[%emt 0:00:48]} 35. Ra4 {[%emt 0:05:36]} Rb8 {[%emt 0:02:02]} 36. Nxe4 {[%emt 0:01:05]} Nxe4 {[%emt 0:00:10]} 37. Bxe4 {[%emt 0:00:04]} Qxc3 {[%emt 0:00:47]} 38. Qxc3 {[%emt 0:00:03]} Bxc3 {[%emt 0:00:05]} 39. Rxa6 {[%emt 0:00:01]} Rb2+ {[%emt 0:02:08]} 40. Kh1 {[%emt 0:00:00]} Rxa2 {[%emt 0:00:00]} 41. Rxa2 {[%emt 0:00:12]} Bxa2 {[%emt 0:04:03]} 42. Bxc7 {[%emt 0:00:03]} Be6 {[%emt 0:00:07]} 43. h4 {[%emt 0:00:11]} Kg7 {[%emt 0:00:43]} 1/2-1/2

[Event "37th Andorra Open 2019"]
[Site "Caldea"]
[Date "2019.07.30"]
[Round "4.8"]
[White "Arizmendi Martinez, Julen Luis"]
[Black "Van der Lende, Ilias"]
[Result "1-0"]
[ECO "C07"]
[WhiteElo "2512"]
[BlackElo "2350"]
[Annotator "ChessBase"]
[PlyCount "43"]
[EventDate "2018.07.21"]
[EventType "swiss"]
[EventCountry "AND"]
[SourceTitle "playchess.com"]
[Source "ChessBase"]
[SourceQuality "1"]
[TimeControl "40/5400+30:1800+30"]

1. e4 {[%emt 0:03:45]} e6 {[%emt 0:00:00]} 2. d4 {[%emt 0:00:10]} d5 {[%emt 0:00:00]} 3. Nd2 {[%emt 0:00:09]} c5 {[%emt 0:00:55]} 4. exd5 {[%emt 0:00:33]} Qxd5 {[%emt 0:01:40]} 5. Ngf3 {[%emt 0:01:02]} cxd4 {[%emt 0:00:07]} 6. Bc4 {[%emt 0:00:15]} Qd8 {[%emt 0:02:23]} 7. O-O {[%emt 0:01:16]} Nf6 {[%emt 0:01:04]} 8. Nb3 {[%emt 0:00:55]} Be7 {[%emt 0:00:24]} 9. Qe2 {[%emt 0:14:17]} a6 {[%emt 0:11:04]} 10. Nbxd4 {[%emt 0:05:43]} b5 {[%emt 0:04:50]} 11. Bb3 {[%emt 0:01:02]} Bb7 {[%emt 0:00:24]} 12. Bxe6 {[%emt 0:12:59]} fxe6 {[%emt 0:07:31]} 13. Nxe6 {[%emt 0:00:42]} Qb6 {[%emt 0:00:28]} 14. Nxg7+ {[%emt 0:09:53]} Kd8 {[%emt 0:00:48]} 15. Rd1+ {[%emt 0:12:05]} Nbd7 {[%emt 0:07:38]} 16. Ne5 {[%emt 0:00:57]} Bd5 {[%emt 0:05:21]} 17. Bg5 {[%emt 0:07:25]} Rg8 {[%emt 0:10:33]} 18. Nxd7 {[%emt 0:03:56]} Kxd7 {[%emt 0:00:37]} 19. Bxf6 {[%emt 0:01:09]} Qxf6 {[%emt 0:04:00]} 20. Rxd5+ {[%emt 0:00:09]} Kc6 {[%emt 0:00:04]} 21. Qe4 {[%emt 0:00:28]} Qh4 {[%emt 0:00:18]} 22. Qe6+ {[%emt 0:00:31]} 1-0

[Event "37th Andorra Open 2019"]
[Site "Caldea"]
[Date "2019.07.31"]
[Round "5.5"]
[White "Aloma Vidal, Robert"]
[Black "Asis Gargatagli, Hipolito"]
[Result "1/2-1/2"]
[ECO "C60"]
[WhiteElo "2419"]
[BlackElo "2506"]
[Annotator "ChessBase"]
[PlyCount "26"]
[EventDate "2018.07.21"]
[EventType "swiss"]
[EventCountry "AND"]
[SourceTitle "playchess.com"]
[Source "ChessBase"]
[SourceQuality "1"]
[TimeControl "40/5400+30:1800+30"]

1. e4 {[%emt 0:07:12]} e5 {[%emt 0:00:05]} 2. Nf3 {[%emt 0:00:11]} Nc6 {[%emt 0:00:14]} 3. Bb5 {[%emt 0:00:19]} g6 {[%emt 0:01:02]} 4. d4 {[%emt 0:02:55]} exd4 {[%emt 0:00:29]} 5. Bg5 {[%emt 0:00:46]} Be7 {[%emt 0:00:49]} 6. Bxe7 {[%emt 0:00:58]} Qxe7 {[%emt 0:00:22]} 7. Bxc6 {[%emt 0:02:23]} dxc6 {[%emt 0:00:23]} 8. Qxd4 {[%emt 0:00:31]} Nf6 {[%emt 0:00:19]} 9. Nc3 {[%emt 0:01:35]} Bg4 {[%emt 0:02:34]} 10. Nd2 {[%emt 0:04:35]} c5 {[%emt 0:02:01]} 11. Qe3 {[%emt 0:02:02]} O-O-O {[%emt 0:00:43]} 12. f3 {[%emt 0:03:34]} Be6 {[%emt 0:03:25]} 13. O-O-O {[%emt 0:04:57]} b6 {[%emt 0:07:57]} 1/2-1/2